Cogmind - Beta 10.2 @@@ ROGUE MODE // 2021.11.25 @ 00:34:28 Player: Azken Zutik Result: Destroyed by H-66 Slayer with Gauss Rifle Performance ------------- Evolutions (4) 2000 Regions Visited (5) 1000 Robots Destroyed (0) 0 Value Destroyed (0) 0 Prototype IDs (0) 0 Alien Tech Used (0) 0 Bonus (1325) 1325 TOTAL SCORE: 4325 Bonus ------- Pacifist 1325 Cogmind --------- Core Integrity 0/850 Matter 300/300 Energy 98/100 System Corruption 0% Temperature Cool (0) Movement Core (50) Location -6/Factory Parts ------- > --- POWER (4) -------- (None) > --- PROPULSION (7) --- (None) > --- UTILITY (2) ------ (None) > --- WEAPON (2) ------- (None) > --- INVENTORY (4) ---- (None) Peak State ------------ None Favorites ----------- Power None Propulsion None Utility None Weapon None Build | -11 -10 -9 -8 -7 -6 ------- Run | Scr Mat Mat Mat Fac Fac Slots Evolved 8 | . . 2 2 2 2 Power 3 | . . 1 . 1 1 Propulsion 5 | . . 1 2 1 1 Utility . | . . . . . . Weapon . | . . . . . . Parts Attached . | . . . . . . Power . | . . . . . . Engine . | . . . . . . Core . | . . . . . . Reactor . | . . . . . . Propulsion . | . . . . . . Treads . | . . . . . . Leg . | . . . . . . Wheel . | . . . . . . Hover . | . . . . . . Flight . | . . . . . . Utility . | . . . . . . Device . | . . . . . . Storage . | . . . . . . Processor . | . . . . . . Hackware . | . . . . . . Protection . | . . . . . . Artifact . | . . . . . . Weapon . | . . . . . . Energy Gun . | . . . . . . Energy Cannon . | . . . . . . Ballistic Gun . | . . . . . . Ballistic Cannon . | . . . . . . Launcher . | . . . . . . Special Weapon . | . . . . . . Impact Weapon . | . . . . . . Slashing Weapon . | . . . . . . Piercing Weapon . | . . . . . . Special Melee Weapon . | . . . . . . Unidentified Prototypes . | . . . . . . Parts Lost . | . . . . . . Power . | . . . . . . Propulsion . | . . . . . . Utility . | . . . . . . Weapon . | . . . . . . Highest Loss Streak . | . . . . . . Average Slot Usage (%) . | . . . . . . Naked Turns 712 | . 55 88 89 200 280 Heaviest Build . | . . . . . . Greatest Support 3 | 3 3 3 3 3 3 Greatest Overweight (x) . | . . . . . . Average Overweight (x) . | . . . . . . Largest Inventory Capacity 4 | 4 4 4 4 4 4 Average Capacity 4 | 4 4 4 4 4 4 Most Carried . | . . . . . . Average Carried . | . . . . . . Final Capacity 4 | 4 4 4 4 4 4 Final Carried . | . . . . . . Class Distribution -------------------- 100% | Mutant Dominant Class ---------------- Mutant | -10/Materials Mutant | -9/Materials Mutant | -8/Materials Mutant | -7/Factory Mutant | -6/Factory Resources | -11 -10 -9 -8 -7 -6 ----------- Run | Scr Mat Mat Mat Fac Fac Matter Collected 144 | 144 . . . . . Remotely . | . . . . . . Salvage Created . | . . . . . . Parts . | . . . . . . Haulers Intercepted . | . . . . . . Recyclers Shooed . | . . . . . . Parts Field Recycled . | . . . . . . Retrieved Matter . | . . . . . . Parts Self-Destructed . | . . . . . . Prevented . | . . . . . . Kills | -11 -10 -9 -8 -7 -6 ------- Run | Scr Mat Mat Mat Fac Fac Combat Hostiles Destroyed . | . . . . . . Classes Destroyed . | . . . . . . Best Kill Streak . | . . . . . . Combat Bots Only . | . . . . . . Max Kills in Single Turn . | . . . . . . Gunslinging . | . . . . . . Exploded . | . . . . . . Melee . | . . . . . . Uniques/NPCs Destroyed . | . . . . . . Combat | -11 -10 -9 -8 -7 -6 -------- Run | Scr Mat Mat Mat Fac Fac Damage Taken 1968 | . 230 251 522 106 859 Core 1968 | . 230 251 522 106 859 Absorbed by Shields . | . . . . . . Core Remaining (%) 46 | 100 8 37 5 84 . Volleys Fired . | . . . . . . Largest . | . . . . . . Hottest . | . . . . . . Shots Fired . | . . . . . . Gun . | . . . . . . Cannon . | . . . . . . Launcher . | . . . . . . Special . | . . . . . . Kinetic . | . . . . . . Thermal . | . . . . . . Explosive . | . . . . . . Electromagnetic . | . . . . . . Robot Hit Streak . | . . . . . . Robot Miss Streak . | . . . . . . Penetration Max . | . . . . . . Secondary Targets . | . . . . . . Shots Hit Robots . | . . . . . . Core Hits 13 | . 4 . 4 3 2 Critical Hits . | . . . . . . Critical Kills . | . . . . . . Critical Parts Destroyed . | . . . . . . Melee Attacks . | . . . . . . Impact . | . . . . . . Slashing . | . . . . . . Piercing . | . . . . . . Sneak Attacks . | . . . . . . Combat Hostiles . | . . . . . . Follow-up Attacks . | . . . . . . Damage Inflicted 59 | . 10 . 14 14 21 Guns . | . . . . . . Cannons . | . . . . . . Explosions . | . . . . . . Melee . | . . . . . . Ramming 59 | . 10 . 14 14 21 Kinetic . | . . . . . . Thermal . | . . . . . . Explosive . | . . . . . . Electromagnetic . | . . . . . . Impact . | . . . . . . Slashing . | . . . . . . Piercing . | . . . . . . Highest Corruption 3 | . 3 . . 1 . Average Corruption 1 | . 1 . . 1 . Corruption Purged . | . . . . . . Overload Shots . | . . . . . . Overflow Damage . | . . . . . . Projectiles . | . . . . . . Explosions . | . . . . . . Melee . | . . . . . . Knockbacks . | . . . . . . Impact . | . . . . . . Kinetic . | . . . . . . Secondary . | . . . . . . Self-Inflicted Damage 25 | . 4 . 6 7 8 Shots . | . . . . . . Rammed 22 | . 6 . 6 3 7 Targets Rammed 22 | . 6 . 6 3 7 Kicked . | . . . . . . Crushed . | . . . . . . Highest Temperature 5 | . . . 5 . . Average Temperature 5 | . . . 5 . . Received Heat Transfer 585 | . 30 105 243 24 183 Siege Activations . | . . . . . . Robots Corrupted . | . . . . . . Combat Hostiles . | . . . . . . Parts Fried . | . . . . . . Impact Corruptions . | . . . . . . Robots Melted . | . . . . . . Combat Hostiles . | . . . . . . Parts Melted . | . . . . . . Heat Transferred . | . . . . . . Parts Sabotaged . | . . . . . . Parts Stolen . | . . . . . . Parts Stripped . | . . . . . . Power Chain Reactions . | . . . . . . Missiles Intercepted . | . . . . . . Alert | -11 -10 -9 -8 -7 -6 ------- Run | Scr Mat Mat Mat Fac Fac Peak Influence 152 | . 45 112 152 64 141 Initial 64 | . . 18 46 64 7 Average 54 | . 20 76 99 7 75 Maximum Alert Level . | . . . . . . Low Security (%) 100 | 100 100 100 100 100 100 Level 1 . | . . . . . . Level 2 . | . . . . . . Level 3 . | . . . . . . Level 4 . | . . . . . . Level 5 . | . . . . . . High Security . | . . . . . . Max Security . | . . . . . . Squads Dispatched 8 | . 1 2 4 . 1 Investigation 2 | . . 1 1 . . Extermination . | . . . . . . Reinforcement 6 | . 1 1 3 . 1 Assault . | . . . . . . Garrison . | . . . . . . Intercept . | . . . . . . Construction Impeded 1 | . . . 1 . . Haulers Reinforced . | . . . . . . Stealth | -11 -10 -9 -8 -7 -6 --------- Run | Scr Mat Mat Mat Fac Fac Distress Signals 4 | . . 1 2 . 1 Communications Jammed . | . . . . . . Distress Signals . | . . . . . . Times Spotted 52 | . 11 12 13 1 15 Peak Tracking Total 11 | . 10 11 11 1 8 Tactical Retreats 6 | . . 1 1 . 4 Traps | -11 -10 -9 -8 -7 -6 ------- Run | Scr Mat Mat Mat Fac Fac Traps Triggered 2 | . . 1 1 . . Indirectly . | . . . . . . Trap Hack Attempts . | . . . . . . Triggered . | . . . . . . Disarmed . | . . . . . . Reprogrammed . | . . . . . . Reused . | . . . . . . Traps Extracted . | . . . . . . Installed . | . . . . . . Triggered . | . . . . . . Machines | -11 -10 -9 -8 -7 -6 ---------- Run | Scr Mat Mat Mat Fac Fac Machines Disabled . | . . . . . . Max in Single Turn . | . . . . . . Machines Sabotaged . | . . . . . . Garrisons Compromised . | . . . . . . Overloaded Fab Kills . | . . . . . . Fab Network Shutdowns . | . . . . . . Hacking | -11 -10 -9 -8 -7 -6 --------- Run | Scr Mat Mat Mat Fac Fac Machines Accessed 15 | . 1 2 2 5 5 Terminals 15 | . 1 2 2 5 5 Fabricators . | . . . . . . Repair Stations . | . . . . . . Recycling Units . | . . . . . . Scanalyzers . | . . . . . . Garrison Access . | . . . . . . Total Hacks 31 | . 3 4 5 11 8 Successful 12 | . . 2 3 5 2 Failed 19 | . 3 2 2 6 6 Catastrophic 6 | . . . . 4 2 Database Lockouts . | . . . . . . Manual 7 | . 1 . 3 2 1 Terminals 31 | . 3 4 5 11 8 Fabricators . | . . . . . . Repair Stations . | . . . . . . Recycling Units . | . . . . . . Scanalyzers . | . . . . . . Garrison Access . | . . . . . . Terminal Hacks 11 | . . 2 2 5 2 Record 2 | . . 1 . 1 . Level Access Points 1 | . . . 1 . . Branch Access Points 1 | . . . . . 1 Emergency Access Points 1 | . . 1 . . . Terminal Index 1 | . . . . 1 . Unreport Threat 1 | . . . . 1 . Locate Traps 1 | . . . . 1 . Zone Layout 3 | . . . 1 1 1 Fabricator Hacks . | . . . . . . Repair Station Hacks . | . . . . . . Recycling Unit Hacks . | . . . . . . Scanalyzer . | . . . . . . Garrison Access Hacks . | . . . . . . Unauthorized Hacks 1 | . . . 1 . . Terminals 1 | . . . 1 . . Assimilate 1 | . . . 1 . . Fabricators . | . . . . . . Repair Stations . | . . . . . . Recycling Units . | . . . . . . Scanalyzers . | . . . . . . Garrison Access . | . . . . . . Data Cores Recovered . | . . . . . . Used . | . . . . . . Hacking Detections 14 | . 1 2 2 4 5 Full Trace Events . | . . . . . . Feedback Events . | . . . . . . Feedback Blocked . | . . . . . . Robot Schematics Acquired . | . . . . . . Robots Built . | . . . . . . Matter . | . . . . . . Time . | . . . . . . Total Robot Build Rating . | . . . . . . Part Schematics Acquired . | . . . . . . Parts Built . | . . . . . . Matter . | . . . . . . Time . | . . . . . . Total Part Build Rating . | . . . . . . Parts Repaired . | . . . . . . Time . | . . . . . . Parts Recycled . | . . . . . . Recycled Matter . | . . . . . . Retrieved Matter . | . . . . . . Retrieved Components . | . . . . . . Parts Scanalyzed . | . . . . . . Part Schematics Acquired . | . . . . . . Parts Damaged . | . . . . . . Bothacking | -11 -10 -9 -8 -7 -6 ------------ Run | Scr Mat Mat Mat Fac Fac Used RIF Installer . | . . . . . . Robots Hacked . | . . . . . . Non-combat . | . . . . . . Combat . | . . . . . . Robot Hacks Applied . | . . . . . . Relay Couplers Released . | . . . . . . Robots Rewired . | . . . . . . Allies Hacked . | . . . . . . Hacks Repelled . | . . . . . . Allies | -11 -10 -9 -8 -7 -6 -------- Run | Scr Mat Mat Mat Fac Fac Total Allies 1 | . . . 1 . . Largest Group 1 | . . . 1 . . Highest-Rated Group 26 | . . . 26 . . Highest-Rated Ally 26 | . . . 26 . . Total Orders . | . . . . . . Ally Attacks . | . . . . . . Total Damage . | . . . . . . Kills . | . . . . . . Allies Corrupted . | . . . . . . Allies Melted . | . . . . . . Intel | -11 -10 -9 -8 -7 -6 ------- Run | Scr Mat Mat Mat Fac Fac Robot Analysis Total . | . . . . . . Derelict Logs Recovered . | . . . . . . Drone Launches . | . . . . . . Drone Recoveries . | . . . . . . Exploration | -11 -10 -9 -8 -7 -6 ------------- Run | Scr Mat Mat Mat Fac Fac Turns Passed 723 | 11 55 88 89 200 280 Spaces Moved 1372 | 22 98 176 165 393 518 Core 1372 | 22 98 176 165 393 518 Treads . | . . . . . . Legs . | . . . . . . Wheels . | . . . . . . Hover . | . . . . . . Flight . | . . . . . . Fastest Speed 50 | 50 50 50 50 50 50 Average Speed 50 | 50 50 50 50 50 50 Slowest Speed 50 | 50 50 50 50 50 50 Overloaded Moves . | . . . . . . Propulsion Burnouts . | . . . . . . Robots Hopped . | . . . . . . Cave-ins Triggered . | . . . . . . Exploration Rate (%) 21 | 3 35 27 27 14 21 Regions Visited 5 Branch Regions . Pre-discovered Areas . | . . . . . . Known Exits Taken 1 | . . . 1 . . Unknown Exits Taken 4 | 1 1 1 . 1 . Scrap Searched . | . . . . . . Spaces Dug . | . . . . . . Terrain Destroyed . | . . . . . . Melee . | . . . . . . Projectile . | . . . . . . AOE . | . . . . . . Terrain Rammed . | . . . . . . Walls Destroyed . | . . . . . . Machines Disabled . | . . . . . . Actions | -11 -10 -9 -8 -7 -6 --------- Run | Scr Mat Mat Mat Fac Fac Total 1403 | 21 103 175 170 395 539 Wait . | . . . . . . Move 1368 | 21 98 175 164 392 518 Hop . | . . . . . . Pick Up . | . . . . . . Fast Attach . | . . . . . . Attach . | . . . . . . Detach . | . . . . . . Swap . | . . . . . . Drop . | . . . . . . Fire . | . . . . . . Melee . | . . . . . . Ram 21 | . 5 . 6 3 7 Kick . | . . . . . . Crush . | . . . . . . Escape Stasis . | . . . . . . Rewire 14 | . . . . . 14 Trap . | . . . . . . Miscellaneous . | . . . . . . Route ------- -11/Scrapyard -10/Materials -9/Materials -8/Materials (discovered 3 exits: *Fac x3) -7/Factory -6/Factory (discovered 2 exits: Low x2) History --------- Turn | Location | Event 2 | -11/Scrapyard | Met Revision 17 3 | -11/Scrapyard | Discovered new exit (range 16) 12 | -11/Scrapyard | Entered Materials 60 | -10/Materials | Discovered new exit (range 10) 61 | -10/Materials | Core integrity fell below 50% 66 | -10/Materials | Core integrity fell below 20% 67 | -10/Materials | Entered another Materials area 67 | -9/Materials | Evolved 2 slots: Power x1, Propulsion x1 151 | -9/Materials | Core integrity fell below 50% 151 | -9/Materials | Discovered new exit (range 10) 155 | -9/Materials | Entered another Materials area 155 | -8/Materials | Evolved 2 slots: Propulsion x2 215 | -8/Materials | Identified exit to Factory 235 | -8/Materials | Core integrity fell below 50% 242 | -8/Materials | Core integrity fell below 20% 244 | -8/Materials | Entered Factory 244 | -7/Factory | Evolved 2 slots: Power x1, Propulsion x1 305 | -7/Factory | Build established: Mutant 435 | -7/Factory | Discovered new exit (range 15) 444 | -7/Factory | Entered another Factory area 444 | -6/Factory | Evolved 2 slots: Power x1, Propulsion x1 464 | -6/Factory | Spotted B-75 Beast 679 | -6/Factory | Core integrity fell below 50% 689 | -6/Factory | Identified exit to Lower Caves 712 | -6/Factory | Core integrity fell below 20% 724 | -6/Factory | Destroyed by H-66 Slayer with Gauss Rifle Last Messages --------------- 00561_ K-01 Serf collects debris. 00564_ Slammed into K-01 Serf. 00564_ K-01 Serf collects debris. 00580_ K-01 Serf cleans the Matter Pump. 00585_ K-01 Serf collects debris. 00585_ K-01 Serf cleans the Matter Pump. 00609_ Connecting with Terminal... 00654_ Drone sends a signal. 00673_ U-05 Engineer lays Concrete. 00689_ Connecting with Terminal... >>Access(Branch) Found 2 branch access points: (134,17) Lower Caves (56,70) Lower Caves Map updated. 00694_ Connecting with Terminal... >>Layout(Zone) Retrieving Zone 5T layout... Downloaded map data. 00721_ Penetrated by Slug. Map ----- +----------------------------------------------------+ | | | | | | | | | | | | | | | | | | | | | | | ?????????????????????????????????????????????????? | | ???????????????????????????????????????????####### | | ???????????????????????????????????????????# ! # | | ???????????????????????????????????????##### ! | | ???????????????????????????????????????# T | | ???????????????????????????????????????# ### | | ???????????????????????????????????????# #?# # | | ???????????????????????????????????????# #?####### | | ???????????????????????????????????????# #???????? | | ??????????????????????????###+########## #???????? | | ????????????????????????### #???????? | | ??????????????????? ????#"" #######???????? | | ?????????????????# ???#T #?????????????? | | ?????????????????# ##### #?????????????? | | ?????????????????# @ ##+#?????????????? | | ?????????????????# #????????????????? | | ?????????????????# #??????"?????????? | | ??????>??????? h#???? "########## | | ?????????????######## ##### #?? " "# | | ????????????????????# ????# # " " T# | | ????????????????????#?????# + " " "# | | ??????????????????????????# # " " "# | | ??????????????????????????# #?? " "# ! | | ??????????????????????????# #???? # | | ??????????????????????????# #?????? # | | ??????????????????????????# #???????# | | ??????????????????????????# #???????# | | ??????????????????????????+ #???????? | | ??????????????????????????# #?????????? | | ??????????????????????????# #???????????? | | ????????????????########### ##?????????####+## | | ????????????????# #?????????# | | ????????????????# #?????????# | | ????????????????# /[ #?????????# | | ????????????????# /[ #?????????# | | ????????????????# [ #?????????# | | ????????????????# #?????????# | | ????????????????# #?????????# | | ????????????????# #?????????# | +----------------------------------------------------+ Best States ------------- Heat Dissipation 37 Energy Generation 5 Energy Capacity 100 Matter Stores 300 Matter Capacity 300 Sight Range 16 Terrain Scan Density 10 Evasion (%) 50 Item Schematics ----------------- None Robot Schematics ------------------ None Fabricated ------------ Nothing Alien Tech Used ----------------- None Achievements -------------- None Challenges ------------ None Game ------ Seed MomentumBarrageCore Manual? 0 Play Time 00:16:52 Cumulative 66.1 hours Start 2021.11.25 @ 00:19:27 End 2021.11.25 @ 00:34:28 Sessions 1 Manual Loads 0 Difficulty Rogue Special Mode None Game No. 37 Rogue 37 Adventurer 0 Explorer 0 Win Type - Total 1 Types 1/0/0/0/0/0/0/0/0 Lore% 31 Gallery% 47 Achievement% 39 Wizard Run 0 Options --------- ASCII 0 Keyboard 0 Movement Mouse Keybinds 0 Fullscreen 0 Font 28/SmallcapsGlow Map View 72x54 Tactical HUD 1 Map Filters NONE Filters NONE Steam 1 RUN: 5562b2f0-962c-420b-a6ed-ea1f89c13c3e